[Event "Late-Titled-Tuesday-Blitz-March-19-2024"]
[Site "Chess.com"]
[Date "2024.03.19"]
[Round "1"]
[White "santosalberto1987"]
[Black "Polish_fighter3000"]
[Result "0-1"]
[WhiteElo "2564"]
[BlackElo "3126"]
[TimeControl "180+1"]
[EndTime "14:07:29 PDT"]
[Termination "Polish_fighter3000 won on time"]

1. e4 {[%clk 0:02:58.7]} 1... d6 {[%clk 0:02:58.6]} 2. d4 {[%clk 0:02:58.6]}
2... Nf6 {[%clk 0:02:58.1]} 3. Nc3 {[%clk 0:02:58.6]} 3... g6 {[%clk 0:02:58.7]}
4. Be3 {[%clk 0:02:58.7]} 4... c6 {[%clk 0:02:57.4]} 5. Qd2 {[%clk 0:02:53.9]}
5... b5 {[%clk 0:02:51.3]} 6. Bd3 {[%clk 0:02:53]} 6... Nbd7 {[%clk 0:02:46.4]}
7. Nf3 {[%clk 0:02:50.9]} 7... Ng4 {[%clk 0:02:37.4]} 8. Bg5 {[%clk 0:02:50.4]}
8... h6 {[%clk 0:02:36.9]} 9. Bh4 {[%clk 0:02:50.5]} 9... Nb6 {[%clk 0:02:24.2]}
10. O-O-O {[%clk 0:02:40.1]} 10... b4 {[%clk 0:02:06.8]} 11. Ne2 {[%clk
0:02:38.9]} 11... a5 {[%clk 0:02:07.1]} 12. h3 {[%clk 0:02:30.9]} 12... Nf6
{[%clk 0:02:06.9]} 13. e5 {[%clk 0:02:29.7]} 13... Nfd5 {[%clk 0:02:05.6]} 14.
exd6 {[%clk 0:02:18.6]} 14... Qxd6 {[%clk 0:02:06.5]} 15. Ne5 {[%clk 0:02:16.9]}
15... Bg7 {[%clk 0:02:00.5]} 16. Rhe1 {[%clk 0:02:08]} 16... Na4 {[%clk
0:01:53.6]} 17. Nf4 {[%clk 0:01:51.3]} 17... Nxf4 {[%clk 0:00:31]} 18. Qxf4
{[%clk 0:01:51]} 18... O-O {[%clk 0:00:31.6]} 19. Qe4 {[%clk 0:01:08.5]} 19...
Be6 {[%clk 0:00:14]} 20. Bc4 {[%clk 0:00:48.8]} 20... Bd5 {[%clk 0:00:11.5]} 21.
Qe3 {[%clk 0:00:38.7]} 21... e6 {[%clk 0:00:08.7]} 22. Kb1 {[%clk 0:00:27.2]}
22... Nb6 {[%clk 0:00:06.1]} 23. Bxd5 {[%clk 0:00:20.2]} 23... Nxd5 {[%clk
0:00:05.5]} 24. Qd2 {[%clk 0:00:17]} 24... Rfc8 {[%clk 0:00:03.5]} 25. Bg3
{[%clk 0:00:16.9]} 25... Qe7 {[%clk 0:00:03]} 26. Nc4 {[%clk 0:00:14.3]} 26...
a4 {[%clk 0:00:03.2]} 27. Be5 {[%clk 0:00:12]} 27... a3 {[%clk 0:00:02.7]} 28.
b3 {[%clk 0:00:04.1]} 28... Nc3+ {[%clk 0:00:02.7]} 29. Ka1 {[%clk 0:00:03.1]}
29... Nxd1 {[%clk 0:00:02.2]} 30. Rxd1 {[%clk 0:00:03.6]} 30... Rd8 {[%clk
0:00:02.8]} 31. f4 {[%clk 0:00:03.4]} 31... c5 {[%clk 0:00:02.8]} 32. Qe3 {[%clk
0:00:02.6]} 32... cxd4 {[%clk 0:00:03]} 33. Rxd4 {[%clk 0:00:02.3]} 33... Rxd4
{[%clk 0:00:03.6]} 34. Qxd4 {[%clk 0:00:02.6]} 34... Rd8 {[%clk 0:00:04.2]} 0-1

[Event "Late-Titled-Tuesday-Blitz-March-19-2024"]
[Site "Chess.com"]
[Date "2024.03.19"]
[Round "1"]
[White "Mackster23"]
[Black "FabianoCaruana"]
[Result "0-1"]
[WhiteElo "2558"]
[BlackElo "3072"]
[TimeControl "180+1"]
[EndTime "14:07:31 PDT"]
[Termination "FabianoCaruana won by resignation"]

1. e4 {[%clk 0:03:00.9]} 1... c5 {[%clk 0:02:58.8]} 2. Nf3 {[%clk 0:03:00.4]}
2... e6 {[%clk 0:02:58.6]} 3. d4 {[%clk 0:03:00.5]} 3... cxd4 {[%clk 0:02:58.8]}
4. Nxd4 {[%clk 0:03:01.4]} 4... Nc6 {[%clk 0:02:58.8]} 5. Nc3 {[%clk 0:03:01.9]}
5... a6 {[%clk 0:02:58.5]} 6. Nxc6 {[%clk 0:02:57.2]} 6... bxc6 {[%clk
0:02:58.8]} 7. Bd3 {[%clk 0:02:56.8]} 7... d5 {[%clk 0:02:59.4]} 8. O-O {[%clk
0:02:49.8]} 8... Nf6 {[%clk 0:02:59.6]} 9. e5 {[%clk 0:02:44]} 9... Nd7 {[%clk
0:02:59.2]} 10. Re1 {[%clk 0:02:44.5]} 10... Bb7 {[%clk 0:02:52.1]} 11. Bf4
{[%clk 0:02:26.6]} 11... c5 {[%clk 0:02:44.6]} 12. b3 {[%clk 0:02:23]} 12... Be7
{[%clk 0:02:38.4]} 13. Ne2 {[%clk 0:02:20.9]} 13... g5 {[%clk 0:02:35.9]} 14.
Bg3 {[%clk 0:02:15.8]} 14... h5 {[%clk 0:02:35.6]} 15. h3 {[%clk 0:02:14.8]}
15... Qc7 {[%clk 0:02:30.6]} 16. c4 {[%clk 0:01:54.6]} 16... Qc6 {[%clk
0:01:59.9]} 17. Nc3 {[%clk 0:01:38.3]} 17... Nf8 {[%clk 0:01:30.5]} 18. Rc1
{[%clk 0:01:24.7]} 18... Rd8 {[%clk 0:01:26.2]} 19. Qe2 {[%clk 0:01:22.9]} 19...
d4 {[%clk 0:01:04.3]} 20. Be4 {[%clk 0:01:11.2]} 20... Qd7 {[%clk 0:01:04.8]}
21. Bxb7 {[%clk 0:01:11.2]} 21... Qxb7 {[%clk 0:01:05.7]} 22. Ne4 {[%clk
0:01:11]} 22... Ng6 {[%clk 0:01:05]} 23. Qf3 {[%clk 0:01:02]} 23... Qd7 {[%clk
0:00:45.9]} 24. b4 {[%clk 0:00:48.6]} 24... cxb4 {[%clk 0:00:41]} 25. Nd6+
{[%clk 0:00:46.7]} 25... Bxd6 {[%clk 0:00:40]} 26. exd6 {[%clk 0:00:47.6]} 26...
Rc8 {[%clk 0:00:33.2]} 27. c5 {[%clk 0:00:47.5]} 27... Rc6 {[%clk 0:00:28.3]}
28. Qf6 {[%clk 0:00:29.1]} 28... g4 {[%clk 0:00:27.8]} 29. h4 {[%clk 0:00:28]}
29... a5 {[%clk 0:00:25.3]} 30. Qxd4 {[%clk 0:00:23.8]} 30... O-O {[%clk
0:00:25.2]} 31. Rc2 {[%clk 0:00:18.6]} 31... Rfc8 {[%clk 0:00:18.7]} 32. Rec1
{[%clk 0:00:18.9]} 32... f5 {[%clk 0:00:14.9]} 33. Rc4 {[%clk 0:00:13.1]} 33...
Qf7 {[%clk 0:00:13.9]} 34. Qe3 {[%clk 0:00:12]} 34... e5 {[%clk 0:00:11.8]} 35.
Bxe5 {[%clk 0:00:11.5]} 35... Re8 {[%clk 0:00:11.9]} 36. f4 {[%clk 0:00:08.4]}
36... gxf3 {[%clk 0:00:11.6]} 37. Qxf3 {[%clk 0:00:08.7]} 37... Nxe5 {[%clk
0:00:12]} 38. Qg3+ {[%clk 0:00:09.1]} 38... Qg7 {[%clk 0:00:11.7]} 39. Qxg7+
{[%clk 0:00:07.1]} 39... Kxg7 {[%clk 0:00:12.6]} 40. Rf4 {[%clk 0:00:06.4]}
40... Kg6 {[%clk 0:00:13]} 41. Rc2 {[%clk 0:00:04.3]} 41... Nd7 {[%clk
0:00:12.2]} 42. Rfc4 {[%clk 0:00:04.3]} 42... Re5 {[%clk 0:00:12.3]} 43. Rd2
{[%clk 0:00:02.7]} 43... Rcxc5 {[%clk 0:00:12.5]} 44. Rxc5 {[%clk 0:00:02.3]}
44... Rxc5 {[%clk 0:00:13.4]} 0-1

[Event "Late-Titled-Tuesday-Blitz-March-19-2024"]
[Site "Chess.com"]
[Date "2024.03.19"]
[Round "1"]
[White "TheKnightOfBosnia"]
[Black "lluiss"]
[Result "1-0"]
[WhiteElo "2625"]
[BlackElo "2265"]
[TimeControl "180+1"]
[EndTime "14:07:38 PDT"]
[Termination "TheKnightOfBosnia won by resignation"]

1. e4 {[%clk 0:03:00.9]} 1... c5 {[%clk 0:02:59.2]} 2. Nf3 {[%clk 0:03:00.9]}
2... d6 {[%clk 0:02:58.3]} 3. d4 {[%clk 0:03:00.4]} 3... cxd4 {[%clk 0:02:58.2]}
4. Nxd4 {[%clk 0:03:01.3]} 4... Nf6 {[%clk 0:02:58.3]} 5. Nc3 {[%clk 0:03:00]}
5... g6 {[%clk 0:02:58]} 6. f3 {[%clk 0:02:59.1]} 6... Bg7 {[%clk 0:02:58.3]} 7.
Be3 {[%clk 0:02:59.8]} 7... O-O {[%clk 0:02:58.2]} 8. Qd2 {[%clk 0:03:00.4]}
8... Nc6 {[%clk 0:02:57.6]} 9. O-O-O {[%clk 0:03:00.6]} 9... Nxd4 {[%clk
0:02:57.7]} 10. Bxd4 {[%clk 0:02:59.9]} 10... Be6 {[%clk 0:02:58.3]} 11. g4
{[%clk 0:02:55.3]} 11... Qa5 {[%clk 0:02:57.1]} 12. Nd5 {[%clk 0:02:51.4]} 12...
Qxd2+ {[%clk 0:02:55.8]} 13. Rxd2 {[%clk 0:02:51.5]} 13... Nxd5 {[%clk
0:02:50.6]} 14. Bxg7 {[%clk 0:02:49.7]} 14... Kxg7 {[%clk 0:02:49.7]} 15. exd5
{[%clk 0:02:50]} 15... Bd7 {[%clk 0:02:49.8]} 16. b3 {[%clk 0:02:39.2]} 16... g5
{[%clk 0:02:49.4]} 17. h4 {[%clk 0:02:38.8]} 17... h6 {[%clk 0:02:42.2]} 18.
hxg5 {[%clk 0:02:38.2]} 18... hxg5 {[%clk 0:02:42.2]} 19. Bd3 {[%clk 0:02:38.2]}
19... Rh8 {[%clk 0:02:40.7]} 20. Rdh2 {[%clk 0:02:38.6]} 20... Rxh2 {[%clk
0:02:39.1]} 21. Rxh2 {[%clk 0:02:39.5]} 21... Rh8 {[%clk 0:02:38.1]} 22. Rxh8
{[%clk 0:02:38.6]} 22... Kxh8 {[%clk 0:02:39]} 23. Kd2 {[%clk 0:02:38.1]} 23...
Kg7 {[%clk 0:02:39.2]} 24. Ke3 {[%clk 0:02:38.2]} 24... Kf6 {[%clk 0:02:33.2]}
25. Kd4 {[%clk 0:02:38.2]} 25... e5+ {[%clk 0:02:32.3]} 26. Kc4 {[%clk
0:02:25.6]} 26... a5 {[%clk 0:01:23.3]} 27. a4 {[%clk 0:02:09.1]} 27... b6
{[%clk 0:01:19]} 28. c3 {[%clk 0:02:06.1]} 28... Ke7 {[%clk 0:00:57.2]} 29. Bc2
{[%clk 0:02:05.6]} 29... Kd8 {[%clk 0:00:54.6]} 30. b4 {[%clk 0:02:05.1]} 30...
Kc7 {[%clk 0:00:54.7]} 31. Kb3 {[%clk 0:01:40.8]} 31... Kb7 {[%clk 0:00:52.4]}
32. Bd3 {[%clk 0:01:39.6]} 32... Kc7 {[%clk 0:00:51.1]} 33. c4 {[%clk
0:01:38.1]} 33... Kb8 {[%clk 0:00:47.1]} 34. Bb1 {[%clk 0:01:32.3]} 34... Kc7
{[%clk 0:00:46.8]} 35. Bc2 {[%clk 0:01:32.5]} 35... Kb7 {[%clk 0:00:46.7]} 36.
Bh7 {[%clk 0:01:28.5]} 36... Kc7 {[%clk 0:00:43.8]} 37. Be4 {[%clk 0:01:19]}
37... Kb7 {[%clk 0:00:40.8]} 38. Bc2 {[%clk 0:00:59.1]} 38... Kc7 {[%clk
0:00:40]} 39. Kc3 {[%clk 0:00:59.5]} 39... Kb7 {[%clk 0:00:39.3]} 40. Bb3 {[%clk
0:00:51.1]} 40... f5 {[%clk 0:00:34.5]} 41. gxf5 {[%clk 0:00:50.3]} 41... Bxf5
{[%clk 0:00:34.5]} 42. Bd1 {[%clk 0:00:39.5]} 42... e4 {[%clk 0:00:33.9]} 43.
bxa5 {[%clk 0:00:28.2]} 43... bxa5 {[%clk 0:00:33]} 44. fxe4 {[%clk 0:00:28.6]}
44... Bxe4 {[%clk 0:00:32.4]} 45. Kd4 {[%clk 0:00:29.5]} 45... Bf5 {[%clk
0:00:23.6]} 46. c5 {[%clk 0:00:29.7]} 46... Kc7 {[%clk 0:00:23.1]} 47. Kc4
{[%clk 0:00:25.8]} 47... Bd7 {[%clk 0:00:17.5]} 48. c6 {[%clk 0:00:25.1]} 48...
Bxc6 {[%clk 0:00:12.2]} 49. dxc6 {[%clk 0:00:26]} 49... Kxc6 {[%clk 0:00:12.6]}
50. Bf3+ {[%clk 0:00:26]} 50... Kb6 {[%clk 0:00:12.6]} 51. Kd5 {[%clk
0:00:25.4]} 51... Kc7 {[%clk 0:00:11.5]} 52. Bg4 {[%clk 0:00:25.5]} 1-0

[Event "Late-Titled-Tuesday-Blitz-March-19-2024"]
[Site "Chess.com"]
[Date "2024.03.19"]
[Round "1"]
[White "rikchessmx"]
[Black "Vahe_Danielyan"]
[Result "0-1"]
[WhiteElo "2296"]
[BlackElo "2638"]
[TimeControl "180+1"]
[EndTime "14:07:45 PDT"]
[Termination "Vahe_Danielyan won on time"]

1. e4 {[%clk 0:02:59.2]} 1... e6 {[%clk 0:02:58.1]} 2. d4 {[%clk 0:02:58.9]}
2... d5 {[%clk 0:02:58.2]} 3. Nc3 {[%clk 0:02:59.6]} 3... Bb4 {[%clk 0:02:56.7]}
4. e5 {[%clk 0:02:59.7]} 4... c5 {[%clk 0:02:55.5]} 5. a3 {[%clk 0:02:59.5]}
5... Bxc3+ {[%clk 0:02:53.7]} 6. bxc3 {[%clk 0:03:00.4]} 6... Ne7 {[%clk
0:02:53.9]} 7. Nf3 {[%clk 0:02:59.3]} 7... b6 {[%clk 0:02:50.9]} 8. Bb5+ {[%clk
0:02:58.3]} 8... Nec6 {[%clk 0:02:47.5]} 9. O-O {[%clk 0:02:52.2]} 9... Ba6
{[%clk 0:02:46.1]} 10. a4 {[%clk 0:02:52.2]} 10... h6 {[%clk 0:02:43.3]} 11. Ba3
{[%clk 0:02:47.8]} 11... Qe7 {[%clk 0:02:35.3]} 12. dxc5 {[%clk 0:02:36.9]}
12... bxc5 {[%clk 0:02:35.4]} 13. Nd4 {[%clk 0:02:36.7]} 13... Bb7 {[%clk
0:02:27.9]} 14. f4 {[%clk 0:02:33.4]} 14... a6 {[%clk 0:02:26.9]} 15. Nxc6
{[%clk 0:02:32.2]} 15... Bxc6 {[%clk 0:02:21.9]} 16. Bd3 {[%clk 0:02:29.3]}
16... g6 {[%clk 0:02:17.1]} 17. c4 {[%clk 0:02:22.9]} 17... d4 {[%clk
0:02:09.3]} 18. Qe1 {[%clk 0:02:12.9]} 18... O-O {[%clk 0:01:58.5]} 19. Bc1
{[%clk 0:02:08]} 19... Kg7 {[%clk 0:01:54.5]} 20. Bd2 {[%clk 0:02:06.8]} 20...
Nd7 {[%clk 0:01:53.7]} 21. Qg3 {[%clk 0:02:04.4]} 21... Kh7 {[%clk 0:01:40.8]}
22. a5 {[%clk 0:02:04.1]} 22... Rab8 {[%clk 0:01:37.5]} 23. Rae1 {[%clk
0:02:00.4]} 23... Rb2 {[%clk 0:01:36.3]} 24. h4 {[%clk 0:01:50.9]} 24... Rg8
{[%clk 0:01:35.4]} 25. Rf2 {[%clk 0:01:47.9]} 25... h5 {[%clk 0:01:25.3]} 26.
Kh2 {[%clk 0:01:31.3]} 26... Ba4 {[%clk 0:01:24.6]} 27. Bc1 {[%clk 0:01:22.2]}
27... Rb1 {[%clk 0:01:24.7]} 28. Qf3 {[%clk 0:01:15.5]} 28... Qxh4+ {[%clk
0:01:21.3]} 29. Kg1 {[%clk 0:01:15.3]} 29... Qg4 {[%clk 0:01:17.6]} 30. Qe4
{[%clk 0:01:06.5]} 30... Rc8 {[%clk 0:01:13.1]} 31. c3 {[%clk 0:00:26.7]} 31...
Bc6 {[%clk 0:01:05.3]} 32. Qe2 {[%clk 0:00:26.3]} 32... Qxe2 {[%clk 0:01:04.5]}
33. Rfxe2 {[%clk 0:00:26.4]} 33... Ra1 {[%clk 0:01:00.2]} 34. cxd4 {[%clk
0:00:26.1]} 34... cxd4 {[%clk 0:00:59.7]} 35. Bb2 {[%clk 0:00:25.7]} 35... Rxe1+
{[%clk 0:00:56.4]} 36. Rxe1 {[%clk 0:00:26.6]} 36... Nc5 {[%clk 0:00:57]} 37.
Bf1 {[%clk 0:00:26.1]} 37... d3 {[%clk 0:00:52.6]} 38. Bd4 {[%clk 0:00:25.4]}
38... Nb3 {[%clk 0:00:53.1]} 39. Bb6 {[%clk 0:00:22.8]} 39... d2 {[%clk
0:00:50.7]} 40. Rd1 {[%clk 0:00:22.9]} 40... Be4 {[%clk 0:00:50.3]} 41. c5
{[%clk 0:00:19]} 41... Bc2 {[%clk 0:00:50.2]} 42. Rxd2 {[%clk 0:00:15.1]} 42...
Nxd2 {[%clk 0:00:51.1]} 43. Bxa6 {[%clk 0:00:14.9]} 43... Ra8 {[%clk 0:00:39.1]}
44. Bb7 {[%clk 0:00:13.8]} 44... Be4 {[%clk 0:00:39.6]} 45. a6 {[%clk
0:00:11.8]} 45... Nc4 {[%clk 0:00:27.9]} 46. Bxe4 {[%clk 0:00:09.1]} 46... Rxa6
{[%clk 0:00:28.4]} 47. Bc7 {[%clk 0:00:04.6]} 47... Ra1+ {[%clk 0:00:26.8]} 48.
Kh2 {[%clk 0:00:04.2]} 48... Rc1 {[%clk 0:00:27.7]} 49. Bd6 {[%clk 0:00:02.4]}
49... Kg7 {[%clk 0:00:20.3]} 50. Kg3 {[%clk 0:00:02.2]} 50... Rc3+ {[%clk
0:00:19]} 51. Kf2 {[%clk 0:00:02.1]} 51... Nd2 {[%clk 0:00:18.4]} 0-1

[Event "Late-Titled-Tuesday-Blitz-March-19-2024"]
[Site "Chess.com"]
[Date "2024.03.19"]
[Round "1"]
[White "Taran2004"]
[Black "Evandro_Barbosa"]
[Result "0-1"]
[WhiteElo "2401"]
[BlackElo "2717"]
[TimeControl "180+1"]
[EndTime "14:07:46 PDT"]
[Termination "Evandro_Barbosa won by resignation"]

1. e4 {[%clk 0:02:59]} 1... c5 {[%clk 0:02:59.6]} 2. Nf3 {[%clk 0:02:59]} 2...
e6 {[%clk 0:02:59.6]} 3. g3 {[%clk 0:02:58.4]} 3... Nc6 {[%clk 0:02:58.8]} 4.
Bg2 {[%clk 0:02:58.4]} 4... Nf6 {[%clk 0:02:59.4]} 5. e5 {[%clk 0:02:57]} 5...
Ng4 {[%clk 0:02:59.1]} 6. d4 {[%clk 0:02:45.8]} 6... cxd4 {[%clk 0:02:58]} 7.
Nxd4 {[%clk 0:02:43.8]} 7... Ngxe5 {[%clk 0:02:55]} 8. O-O {[%clk 0:02:43.6]}
8... Nxd4 {[%clk 0:02:53.5]} 9. Qxd4 {[%clk 0:02:43.2]} 9... Nc6 {[%clk
0:02:53.9]} 10. Qg4 {[%clk 0:02:38.6]} 10... h5 {[%clk 0:02:51.4]} 11. Qe2
{[%clk 0:02:34]} 11... Be7 {[%clk 0:02:49.3]} 12. Nc3 {[%clk 0:02:33.2]} 12...
d5 {[%clk 0:02:48.5]} 13. Bf4 {[%clk 0:02:31]} 13... h4 {[%clk 0:02:43.2]} 14.
Rad1 {[%clk 0:02:30]} 14... hxg3 {[%clk 0:02:41.5]} 15. hxg3 {[%clk 0:02:30.9]}
15... O-O {[%clk 0:02:38.8]} 16. Qh5 {[%clk 0:02:28.3]} 16... g6 {[%clk
0:02:36.3]} 17. Qh2 {[%clk 0:02:19.7]} 17... Qb6 {[%clk 0:02:31.8]} 18. b3
{[%clk 0:02:12.5]} 18... Bf6 {[%clk 0:02:31.1]} 19. Na4 {[%clk 0:02:08.7]} 19...
Qb4 {[%clk 0:02:25.2]} 20. Bf3 {[%clk 0:02:05.8]} 20... Nd4 {[%clk 0:02:21.7]}
21. Bg4 {[%clk 0:02:01.2]} 21... e5 {[%clk 0:02:16.6]} 22. c3 {[%clk 0:01:55.2]}
22... Qe7 {[%clk 0:02:16.1]} 23. cxd4 {[%clk 0:01:45.2]} 23... exf4 {[%clk
0:02:08.6]} 24. Bxc8 {[%clk 0:01:38.5]} 24... Raxc8 {[%clk 0:02:09.5]} 25. Rde1
{[%clk 0:01:38.5]} 25... Qd6 {[%clk 0:02:06.7]} 26. Kg2 {[%clk 0:01:35.9]} 26...
Kg7 {[%clk 0:02:02.5]} 27. gxf4 {[%clk 0:01:32.3]} 27... Rh8 {[%clk 0:02:00.3]}
28. Qg3 {[%clk 0:01:31.4]} 28... Rh5 {[%clk 0:01:57]} 29. Rd1 {[%clk 0:01:14.3]}
29... Rch8 {[%clk 0:01:54.3]} 30. Nc5 {[%clk 0:01:02.9]} 30... Rh2+ {[%clk
0:01:39.4]} 31. Kg1 {[%clk 0:00:59]} 31... R8h7 {[%clk 0:01:35.2]} 32. Nxb7
{[%clk 0:00:51.9]} 32... Qb8 {[%clk 0:01:22]} 33. Nc5 {[%clk 0:00:51.4]} 33...
Qh8 {[%clk 0:01:17.9]} 34. f3 {[%clk 0:00:42.4]} 34... Kg8 {[%clk 0:01:07.9]}
35. Rfe1 {[%clk 0:00:24.7]} 35... Bxd4+ {[%clk 0:01:04.6]} 36. Kf1 {[%clk
0:00:25.4]} 36... Rh1+ {[%clk 0:01:03]} 37. Ke2 {[%clk 0:00:22.4]} 37... Bxc5
{[%clk 0:01:00.6]} 38. Rxh1 {[%clk 0:00:21]} 38... Rxh1 {[%clk 0:01:00]} 39.
Rxd5 {[%clk 0:00:21.4]} 39... Rh2+ {[%clk 0:00:46.8]} 40. Kd3 {[%clk 0:00:20.8]}
40... Bf8 {[%clk 0:00:36.1]} 41. f5 {[%clk 0:00:20.9]} 41... Qb2 {[%clk
0:00:35]} 42. fxg6 {[%clk 0:00:20.5]} 42... Qc2+ {[%clk 0:00:34.8]} 43. Ke3
{[%clk 0:00:19]} 43... Re2+ {[%clk 0:00:33]} 44. Kf4 {[%clk 0:00:17.3]} 44...
Bh6+ {[%clk 0:00:22.9]} 45. Kg4 {[%clk 0:00:15.5]} 45... Qxg6+ {[%clk
0:00:22.1]} 46. Kh3 {[%clk 0:00:15.2]} 46... Qxg3+ {[%clk 0:00:22.6]} 47. Kxg3
{[%clk 0:00:15.6]} 47... Rxa2 {[%clk 0:00:23.1]} 48. Rd7 {[%clk 0:00:15.6]}
48... Bf8 {[%clk 0:00:22.7]} 49. Kg4 {[%clk 0:00:15.7]} 49... a5 {[%clk
0:00:22.8]} 50. Rb7 {[%clk 0:00:16]} 50... Bb4 {[%clk 0:00:22.7]} 51. Kf5 {[%clk
0:00:15.8]} 51... Kg7 {[%clk 0:00:23.2]} 52. Ke4 {[%clk 0:00:14.4]} 52... Rb2
{[%clk 0:00:23.5]} 53. f4 {[%clk 0:00:14.9]} 53... Rxb3 {[%clk 0:00:23.4]} 54.
f5 {[%clk 0:00:15.2]} 54... Rb1 {[%clk 0:00:18.1]} 55. Ra7 {[%clk 0:00:16.1]}
55... Re1+ {[%clk 0:00:17.6]} 56. Kd5 {[%clk 0:00:16.5]} 56... Kf6 {[%clk
0:00:16.4]} 57. Kc4 {[%clk 0:00:16.5]} 57... Re5 {[%clk 0:00:16]} 0-1

[Event "Late-Titled-Tuesday-Blitz-March-19-2024"]
[Site "Chess.com"]
[Date "2024.03.19"]
[Round "1"]
[White "AryanTari"]
[Black "laziestwin"]
[Result "0-1"]
[WhiteElo "3009"]
[BlackElo "2561"]
[TimeControl "180+1"]
[EndTime "14:07:48 PDT"]
[Termination "laziestwin won by resignation"]

1. e4 {[%clk 0:02:57.8]} 1... c5 {[%clk 0:02:52.4]} 2. Nc3 {[%clk 0:02:56]} 2...
e6 {[%clk 0:02:53]} 3. d4 {[%clk 0:02:54]} 3... cxd4 {[%clk 0:02:52.6]} 4. Qxd4
{[%clk 0:02:54.9]} 4... Nc6 {[%clk 0:02:52.8]} 5. Qd3 {[%clk 0:02:55.2]} 5...
Nf6 {[%clk 0:02:50.2]} 6. Bf4 {[%clk 0:02:52.6]} 6... Bc5 {[%clk 0:02:47]} 7.
O-O-O {[%clk 0:02:27.7]} 7... O-O {[%clk 0:02:32.9]} 8. e5 {[%clk 0:02:15.1]}
8... Ng4 {[%clk 0:02:32.4]} 9. Ne4 {[%clk 0:02:15.3]} 9... Qa5 {[%clk
0:02:04.8]} 10. Qe3 {[%clk 0:01:58.5]} 10... Bxe3+ {[%clk 0:01:54.2]} 11. fxe3
{[%clk 0:01:42.8]} 11... Qxa2 {[%clk 0:01:49.7]} 12. Nf3 {[%clk 0:01:40.2]}
12... Qa1+ {[%clk 0:01:39.6]} 13. Kd2 {[%clk 0:01:40.1]} 13... Qxb2 {[%clk
0:01:40.3]} 14. Bd3 {[%clk 0:01:35.5]} 14... f5 {[%clk 0:01:27.6]} 15. Rb1
{[%clk 0:01:26.5]} 15... Qa3 {[%clk 0:01:16]} 16. Nd6 {[%clk 0:01:25.7]} 16...
Qa5+ {[%clk 0:01:02.7]} 17. Ke2 {[%clk 0:01:25.8]} 17... Ngxe5 {[%clk
0:01:03.2]} 18. Nxe5 {[%clk 0:01:26]} 18... Nxe5 {[%clk 0:01:03.7]} 19. Rb5
{[%clk 0:01:26.5]} 19... Qa3 {[%clk 0:00:44.5]} 20. Bxe5 {[%clk 0:01:25.1]}
20... b6 {[%clk 0:00:44.6]} 21. Ra1 {[%clk 0:01:22.9]} 21... Qxa1 {[%clk
0:00:39.7]} 22. Bxa1 {[%clk 0:01:23.8]} 22... Ba6 {[%clk 0:00:38.4]} 23. Rb3
{[%clk 0:01:20.1]} 23... Bxd3+ {[%clk 0:00:38.6]} 24. cxd3 {[%clk 0:01:21]}
24... Rfb8 {[%clk 0:00:31.3]} 25. Be5 {[%clk 0:01:15.4]} 25... a5 {[%clk
0:00:21.2]} 26. Nb5 {[%clk 0:01:11.2]} 26... Rb7 {[%clk 0:00:18.2]} 27. Bd6
{[%clk 0:01:07]} 27... a4 {[%clk 0:00:17.5]} 28. Rc3 {[%clk 0:01:07.6]} 28...
Ra5 {[%clk 0:00:12.8]} 29. Nd4 {[%clk 0:01:01.3]} 29... b5 {[%clk 0:00:12]} 30.
Bb4 {[%clk 0:01:02]} 30... Ra8 {[%clk 0:00:10.9]} 31. e4 {[%clk 0:01:02.2]}
31... fxe4 {[%clk 0:00:10.6]} 32. dxe4 {[%clk 0:01:03.1]} 32... Kf7 {[%clk
0:00:08.1]} 33. Rf3+ {[%clk 0:01:02.6]} 33... Kg8 {[%clk 0:00:07.7]} 34. Rc3
{[%clk 0:01:00.8]} 34... h6 {[%clk 0:00:08.1]} 35. e5 {[%clk 0:01:00.8]} 35...
Raa7 {[%clk 0:00:06.5]} 36. Kd3 {[%clk 0:00:48]} 36... Ra8 {[%clk 0:00:05.7]}
37. Ke4 {[%clk 0:00:45.7]} 37... Kf7 {[%clk 0:00:04.9]} 38. g4 {[%clk 0:00:45]}
38... Kg6 {[%clk 0:00:04.4]} 39. h4 {[%clk 0:00:45.3]} 39... Kf7 {[%clk
0:00:04.9]} 40. h5 {[%clk 0:00:45.6]} 40... g6 {[%clk 0:00:05.2]} 41. Rf3+
{[%clk 0:00:44.9]} 41... Kg7 {[%clk 0:00:05.7]} 42. Ne2 {[%clk 0:00:38.5]} 42...
gxh5 {[%clk 0:00:05.7]} 43. gxh5 {[%clk 0:00:39.4]} 43... Rc7 {[%clk 0:00:05.3]}
44. Nd4 {[%clk 0:00:32.3]} 44... Rc4 {[%clk 0:00:05.8]} 45. Bd6 {[%clk 0:00:30]}
45... b4 {[%clk 0:00:05.5]} 46. Rg3+ {[%clk 0:00:30.2]} 46... Kh7 {[%clk
0:00:03.9]} 47. Rf3 {[%clk 0:00:30.9]} 47... a3 {[%clk 0:00:03.3]} 48. Rf7+
{[%clk 0:00:13.8]} 48... Kg8 {[%clk 0:00:03.7]} 49. Kd3 {[%clk 0:00:14.7]} 49...
Rxd4+ {[%clk 0:00:03.4]} 50. Kxd4 {[%clk 0:00:14.7]} 50... Kxf7 {[%clk
0:00:04.3]} 51. Bxb4 {[%clk 0:00:15.2]} 51... a2 {[%clk 0:00:05]} 52. Bc3 {[%clk
0:00:14.5]} 52... a1=Q {[%clk 0:00:05.9]} 0-1